Workbook

Sheet Bangkokhilton
B1: From | C1: To | D1: Single | E1: Double | F1: Triple
A2: Bangkokhilton | B2: 2017-01-03 | C2: 2017-03-15 | D2: 157 | E2: 209 | F2: 298
A3: Bangkokhilton | B3: 2017-03-16 | C3: 2017-04-13 | D3: 144 | E3: 191 | F3: 273
A4: Bangkokhilton | B4: 2017-04-14 | C4: 2017-04-17 | D4: 194 | E4: 241 | F4: 323
A5: Bangkokhilton | B5: 2017-04-18 | C5: 2017-06-30 | D5: 144 | E5: 191 | F5: 273
A6: Bangkokhilton | B6: 2017-07-01 | C6: 2017-10-31 | D6: 165 | E6: 220 | F6: 314
A7: Bangkokhilton | B7: 2017-11-01 | C7: 2017-12-15 | D7: 144 | E7: 191 | F7: 273
A8: Bangkokhilton | B8: 2017-12-16 | C8: 2017-12-23 | D8: 165 | E8: 220 | F8: 314
A9: Bangkokhilton | B9: 2017-12-24 | C9: 2017-12-26 | D9: 215 | E9: 270 | F9: 364
A10: Bangkokhilton | B10: 2017-12-27 | C10: 2017-12-29 | D10: 165 | E10: 220 | F10: 314
A11: Bangkokhilton | B11: 2017-12-30 | C11: 2018-01-02 | D11: 215 | E11: 270 | F11: 364
A14: Date1 | B14: Single | C14: Double | D14: Triple
A15: 2017-01-01 | B15: 157 | C15: 209 | D15: 298
A16: 2017-01-02 | B16: 157 | C16: 209 | D16: 298
A17: 2017-01-03 | B17: 157 | C17: 209 | D17: 298
A18: 2017-01-04 | B18: 157 | C18: 209 | D18: 298
A19: 2017-01-05 | B19: 157 | C19: 209 | D19: 298
A20: 2017-01-06 | B20: 157 | C20: 209 | D20: 298
A21: 2017-01-07 | B21: 157 | C21: 209 | D21: 298
A22: 2017-01-08 | B22: 157 | C22: 209 | D22: 298
A23: 2017-01-09 | B23: 157 | C23: 209 | D23: 298
A24: 2017-01-10 | B24: 157 | C24: 209 | D24: 298
A25: 2017-01-11 | B25: 157 | C25: 209 | D25: 298
A26: 2017-01-12 | B26: 157 | C26: 209 | D26: 298
A27: 2017-01-13 | B27: 157 | C27: 209 | D27: 298
A28: 2017-01-14 | B28: 157 | C28: 209 | D28: 298
A29: 2017-01-15 | B29: 157 | C29: 209 | D29: 298
A30: 2017-01-16 | B30: 157 | C30: 209 | D30: 298
A31: 2017-01-17 | B31: 157 | C31: 209 | D31: 298
A32: 2017-01-18 | B32: 157 | C32: 209 | D32: 298
A33: 2017-01-19 | B33: 157 | C33: 209 | D33: 298
A34: 2017-01-20 | B34: 157 | C34: 209 | D34: 298
A35: 2017-01-21 | B35: 157 | C35: 209 | D35: 298
A36: 2017-01-22 | B36: 157 | C36: 209 | D36: 298
A37: 2017-01-23 | B37: 157 | C37: 209 | D37: 298
A38: 2017-01-24 | B38: 157 | C38: 209 | D38: 298
A39: 2017-01-25 | B39: 157 | C39: 209 | D39: 298
A40: 2017-01-26 | B40: 157 | C40: 209 | D40: 298
A41: 2017-01-27 | B41: 157 | C41: 209 | D41: 298
A42: 2017-01-28 | B42: 157 | C42: 209 | D42: 298
A43: 2017-01-29 | B43: 157 | C43: 209 | D43: 298
A44: 2017-01-30 | B44: 157 | C44: 209 | D44: 298
A45: 2017-01-31 | B45: 157 | C45: 209 | D45: 298
A46: 2017-02-01 | B46: 157 | C46: 209 | D46: 298
A47: 2017-02-02 | B47: 157 | C47: 209 | D47: 298
A48: 2017-02-03 | B48: 157 | C48: 209 | D48: 298
A49: 2017-02-04 | B49: 157 | C49: 209 | D49: 298
A50: 2017-02-05 | B50: 157 | C50: 209 | D50: 298
A51: 2017-02-06 | B51: 157 | C51: 209 | D51: 298
A52: 2017-02-07 | B52: 157 | C52: 209 | D52: 298
A53: 2017-02-08 | B53: 157 | C53: 209 | D53: 298
A54: 2017-02-09 | B54: 157 | C54: 209 | D54: 298
A55: 2017-02-10 | B55: 157 | C55: 209 | D55: 298
A56: 2017-02-11 | B56: 157 | C56: 209 | D56: 298
A57: 2017-02-12 | B57: 157 | C57: 209 | D57: 298
A58: 2017-02-13 | B58: 157 | C58: 209 | D58: 298
A59: 2017-02-14 | B59: 157 | C59: 209 | D59: 298
A60: 2017-02-15 | B60: 157 | C60: 209 | D60: 298
A61: 2017-02-16 | B61: 157 | C61: 209 | D61: 298
A62: 2017-02-17 | B62: 157 | C62: 209 | D62: 298
A63: 2017-02-18 | B63: 157 | C63: 209 | D63: 298
A64: 2017-02-19 | B64: 157 | C64: 209 | D64: 298
A65: 2017-02-20 | B65: 157 | C65: 209 | D65: 298
A66: 2017-02-21 | B66: 157 | C66: 209 | D66: 298
A67: 2017-02-22 | B67: 157 | C67: 209 | D67: 298
A68: 2017-02-23 | B68: 157 | C68: 209 | D68: 298
A69: 2017-02-24 | B69: 157 | C69: 209 | D69: 298
A70: 2017-02-25 | B70: 157 | C70: 209 | D70: 298
A71: 2017-02-26 | B71: 157 | C71: 209 | D71: 298
A72: 2017-02-27 | B72: 157 | C72: 209 | D72: 298
A73: 2017-02-28 | B73: 157 | C73: 209 | D73: 298
A74: 2017-03-01 | B74: 157 | C74: 209 | D74: 298
A75: 2017-03-02 | B75: 157 | C75: 209 | D75: 298
A76: 2017-03-03 | B76: 157 | C76: 209 | D76: 298
A77: 2017-03-04 | B77: 157 | C77: 209 | D77: 298
A78: 2017-03-05 | B78: 157 | C78: 209 | D78: 298
A79: 2017-03-06 | B79: 157 | C79: 209 | D79: 298
A80: 2017-03-07 | B80: 157 | C80: 209 | D80: 298
A81: 2017-03-08 | B81: 157 | C81: 209 | D81: 298
A82: 2017-03-09 | B82: 157 | C82: 209 | D82: 298
A83: 2017-03-10 | B83: 157 | C83: 209 | D83: 298
A84: 2017-03-11 | B84: 157 | C84: 209 | D84: 298
A85: 2017-03-12 | B85: 157 | C85: 209 | D85: 298
A86: 2017-03-13 | B86: 157 | C86: 209 | D86: 298
A87: 2017-03-14 | B87: 157 | C87: 209 | D87: 298
A88: 2017-03-15 | B88: 157 | C88: 209 | D88: 298
A89: 2017-03-16 | B89: 144 | C89: 191 | D89: 273
A90: 2017-03-17 | B90: 144 | C90: 191 | D90: 273
A91: 2017-03-18 | B91: 144 | C91: 191 | D91: 273
A92: 2017-03-19 | B92: 144 | C92: 191 | D92: 273
A93: 2017-03-20 | B93: 144 | C93: 191 | D93: 273
A94: 2017-03-21 | B94: 144 | C94: 191 | D94: 273
A95: 2017-03-22 | B95: 144 | C95: 191 | D95: 273
A96: 2017-03-23 | B96: 144 | C96: 191 | D96: 273
A97: 2017-03-24 | B97: 144 | C97: 191 | D97: 273
A98: 2017-03-25 | B98: 144 | C98: 191 | D98: 273
A99: 2017-03-26 | B99: 144 | C99: 191 | D99: 273
A100: 2017-03-27 | B100: 144 | C100: 191 | D100: 273
A101: 2017-03-28 | B101: 144 | C101: 191 | D101: 273
A102: 2017-03-29 | B102: 144 | C102: 191 | D102: 273
A103: 2017-03-30 | B103: 144 | C103: 191 | D103: 273
A104: 2017-03-31 | B104: 144 | C104: 191 | D104: 273
A105: 2017-04-01 | B105: 144 | C105: 191 | D105: 273
A106: 2017-04-02 | B106: 144 | C106: 191 | D106: 273
A107: 2017-04-03 | B107: 144 | C107: 191 | D107: 273
A108: 2017-04-04 | B108: 144 | C108: 191 | D108: 273
A109: 2017-04-05 | B109: 144 | C109: 191 | D109: 273
A110: 2017-04-06 | B110: 144 | C110: 191 | D110: 273
A111: 2017-04-07 | B111: 144 | C111: 191 | D111: 273
A112: 2017-04-08 | B112: 144 | C112: 191 | D112: 273
A113: 2017-04-09 | B113: 144 | C113: 191 | D113: 273
A114: 2017-04-10 | B114: 144 | C114: 191 | D114: 273
A115: 2017-04-11 | B115: 144 | C115: 191 | D115: 273
A116: 2017-04-12 | B116: 144 | C116: 191 | D116: 273
A117: 2017-04-13 | B117: 144 | C117: 191 | D117: 273
A118: 2017-04-14 | B118: =B117+50 -> 194 | C118: 241 | D118: 323
A119: 2017-04-15 | B119: 244 | C119: 291 | D119: 373
A120: 2017-04-16 | B120: 294 | C120: 341 | D120: 423
A121: 2017-04-17 | B121: 344 | C121: 391 | D121: 473
A122: 2017-04-18 | B122: =B120 -> 294 | C122: 341 | D122: 423
A123: 2017-04-19 | B123: 344 | C123: 391 | D123: 473
A124: 2017-04-20 | B124: 294 | C124: 341 | D124: 423
A125: 2017-04-21 | B125: 344 | C125: 391 | D125: 473
A126: 2017-04-22 | B126: 294 | C126: 341 | D126: 423
A127: 2017-04-23 | B127: 344 | C127: 391 | D127: 473
A128: 2017-04-24 | B128: 294 | C128: 341 | D128: 423
A129: 2017-04-25 | B129: 344 | C129: 391 | D129: 473
A130: 2017-04-26 | B130: 294 | C130: 341 | D130: 423
A131: 2017-04-27 | B131: 344 | C131: 391 | D131: 473
A132: 2017-04-28 | B132: 294 | C132: 341 | D132: 423
A133: 2017-04-29 | B133: 344 | C133: 391 | D133: 473
A134: 2017-04-30 | B134: 294 | C134: 341 | D134: 423
A135: 2017-05-01 | B135: 344 | C135: 391 | D135: 473
A136: 2017-05-02 | B136: 294 | C136: 341 | D136: 423
A137: 2017-05-03 | B137: 344 | C137: 391 | D137: 473
A138: 2017-05-04 | B138: =B136 -> 294 | C138: 341 | D138: 423
A139: 2017-05-05 | B139: 344 | C139: 391 | D139: 473
A140: 2017-05-06 | B140: 294 | C140: 341 | D140: 423
A141: 2017-05-07 | B141: 344 | C141: 391 | D141: 473
A142: 2017-05-08 | B142: 294 | C142: 341 | D142: 423
A143: 2017-05-09 | B143: 344 | C143: 391 | D143: 473
A144: 2017-05-10 | B144: 294 | C144: 341 | D144: 423
A145: 2017-05-11 | B145: 344 | C145: 391 | D145: 473
A146: 2017-05-12 | B146: 294 | C146: 341 | D146: 423
A147: 2017-05-13 | B147: 344 | C147: 391 | D147: 473
A148: 2017-05-14 | B148: 294 | C148: 341 | D148: 423
A149: 2017-05-15 | B149: 344 | C149: 391 | D149: 473
A150: 2017-05-16 | B150: 294 | C150: 341 | D150: 423
A151: 2017-05-17 | B151: 344 | C151: 391 | D151: 473
A152: 2017-05-18 | B152: 294 | C152: 341 | D152: 423
A153: 2017-05-19 | B153: 344 | C153: 391 | D153: 473
A154: 2017-05-20 | B154: =B152 -> 294 | C154: 341 | D154: 423
A155: 2017-05-21 | B155: 344 | C155: 391 | D155: 473
A156: 2017-05-22 | B156: 294 | C156: 341 | D156: 423
A157: 2017-05-23 | B157: 344 | C157: 391 | D157: 473
A158: 2017-05-24 | B158: 294 | C158: 341 | D158: 423
A159: 2017-05-25 | B159: 344 | C159: 391 | D159: 473
A160: 2017-05-26 | B160: 294 | C160: 341 | D160: 423
A161: 2017-05-27 | B161: 344 | C161: 391 | D161: 473
A162: 2017-05-28 | B162: 294 | C162: 341 | D162: 423
A163: 2017-05-29 | B163: 344 | C163: 391 | D163: 473
A164: 2017-05-30 | B164: 294 | C164: 341 | D164: 423
A165: 2017-05-31 | B165: 344 | C165: 391 | D165: 473
A166: 2017-06-01 | B166: 294 | C166: 341 | D166: 423
A167: 2017-06-02 | B167: 344 | C167: 391 | D167: 473
A168: 2017-06-03 | B168: 294 | C168: 341 | D168: 423
A169: 2017-06-04 | B169: 344 | C169: 391 | D169: 473
A170: 2017-06-05 | B170: =B168 -> 294 | C170: 341 | D170: 423
A171: 2017-06-06 | B171: 344 | C171: 391 | D171: 473
A172: 2017-06-07 | B172: 294 | C172: 341 | D172: 423
A173: 2017-06-08 | B173: 344 | C173: 391 | D173: 473
A174: 2017-06-09 | B174: 294 | C174: 341 | D174: 423
A175: 2017-06-10 | B175: 344 | C175: 391 | D175: 473
A176: 2017-06-11 | B176: 294 | C176: 341 | D176: 423
A177: 2017-06-12 | B177: 344 | C177: 391 | D177: 473
A178: 2017-06-13 | B178: 294 | C178: 341 | D178: 423
A179: 2017-06-14 | B179: 344 | C179: 391 | D179: 473
A180: 2017-06-15 | B180: 294 | C180: 341 | D180: 423
A181: 2017-06-16 | B181: 344 | C181: 391 | D181: 473
A182: 2017-06-17 | B182: 294 | C182: 341 | D182: 423
A183: 2017-06-18 | B183: 344 | C183: 391 | D183: 473
A184: 2017-06-19 | B184: 294 | C184: 341 | D184: 423
A185: 2017-06-20 | B185: 344 | C185: 391 | D185: 473
A186: 2017-06-21 | B186: =B184 -> 294 | C186: 341 | D186: 423
A187: 2017-06-22 | B187: 344 | C187: 391 | D187: 473
A188: 2017-06-23 | B188: 294 | C188: 341 | D188: 423
A189: 2017-06-24 | B189: 344 | C189: 391 | D189: 473
A190: 2017-06-25 | B190: 294 | C190: 341 | D190: 423
A191: 2017-06-26 | B191: 344 | C191: 391 | D191: 473
A192: 2017-06-27 | B192: 294 | C192: 341 | D192: 423
A193: 2017-06-28 | B193: 344 | C193: 391 | D193: 473
A194: 2017-06-29 | B194: 294 | C194: 341 | D194: 423
A195: 2017-06-30 | B195: 344 | C195: 391 | D195: 473
A196: 2017-07-01 | B196: 165 | C196: 220 | D196: 314
A197: 2017-07-02 | B197: 165 | C197: 220 | D197: 314
A198: 2017-07-03 | B198: 165 | C198: 220 | D198: 314
A199: 2017-07-04 | B199: 165 | C199: 220 | D199: 314
A200: 2017-07-05 | B200: 165 | C200: 220 | D200: 314
A201: 2017-07-06 | B201: 165 | C201: 220 | D201: 314
A202: 2017-07-07 | B202: 165 | C202: 220 | D202: 314
... 177 more rows

Sheet MandarinOriental
A1: Serena Beach Resort & Spa
F2: Best view | H2: VIP
C3: Single | D3: double | E3: Triple | F3: Single | G3: double | H3: Triple | I3: Single | J3: double | K3: Triple
A4: 2017-01-02 | B4: 2017-03-31 | C4: 150 | D4: 230 | E4: 316 | F4: =C4+50 -> 200 | G4: =D4+50 -> 280 | H4: =E4+50 -> 366 | I4: =C4+75 -> 225 | J4: =D4+75 -> 305 | K4: =E4+75 -> 391
A5: 2017-04-01 | B5: 2017-07-15 | C5: 95 | D5: 190 | E5: 261 | F5: =C5+35 -> 130 | G5: =D5+35 -> 225 | H5: =E5+35 -> 296 | I5: =C5+50 -> 145 | J5: =D5+50 -> 240 | K5: =E5+50 -> 311
A6: 2017-07-16 | B6: 2017-10-31 | C6: 150 | D6: 230 | E6: 361 | F6: =C6+50 -> 200 | G6: 280 | H6: 411 | I6: =C6+75 -> 225 | J6: =D6+75 -> 305 | K6: 436
A7: 2017-11-01 | B7: 2017-12-22 | C7: 135 | D7: 200 | E7: 275 | F7: 185 | G7: 250 | H7: 325 | I7: =C7+75 -> 210 | J7: 275 | K7: 350
A8: 2017-12-23 | B8: 2018-01-01 | C8: 250 | D8: 400 | E8: 550 | F8: 300 | G8: 450 | H8: 600 | I8: =C8+75 -> 325 | J8: 475 | K8: 625
B10: Normal | E10: Best view | H10: VIP
B11: Single | C11: double | D11: Triple | E11: Single | F11: double | G11: Triple | H11: Single | I11: double | J11: Triple
A12: 2017-01-02 | B12: 150 | C12: 230 | D12: 316 | E12: =B12+50 -> 200 | F12: =C12+50 -> 280 | G12: =D12+50 -> 366 | H12: =B12+75 -> 225 | I12: =C12+75 -> 305 | J12: =D12+75 -> 391
A13: 2017-01-03 | B13: 150 | C13: 230 | D13: 316 | E13: =B13+50 -> 200 | F13: =C13+50 -> 280 | G13: =D13+50 -> 366 | H13: =B13+75 -> 225 | I13: =C13+75 -> 305 | J13: =D13+75 -> 391
A14: 2017-01-04 | B14: 150 | C14: 230 | D14: 316 | E14: 200 | F14: 280 | G14: 366 | H14: 225 | I14: 305 | J14: 391
A15: 2017-01-05 | B15: 150 | C15: 230 | D15: 316 | E15: 200 | F15: 280 | G15: 366 | H15: 225 | I15: 305 | J15: 391
A16: 2017-01-06 | B16: 150 | C16: 230 | D16: 316 | E16: 200 | F16: 280 | G16: 366 | H16: 225 | I16: 305 | J16: 391
A17: 2017-01-07 | B17: 150 | C17: 230 | D17: 316 | E17: 200 | F17: 280 | G17: 366 | H17: 225 | I17: 305 | J17: 391
A18: 2017-01-08 | B18: 150 | C18: 230 | D18: 316 | E18: 200 | F18: 280 | G18: 366 | H18: 225 | I18: 305 | J18: 391
A19: 2017-01-09 | B19: 150 | C19: 230 | D19: 316 | E19: 200 | F19: 280 | G19: 366 | H19: 225 | I19: 305 | J19: 391
A20: 2017-01-10 | B20: 150 | C20: 230 | D20: 316 | E20: 200 | F20: 280 | G20: 366 | H20: 225 | I20: 305 | J20: 391
A21: 2017-01-11 | B21: 150 | C21: 230 | D21: 316 | E21: 200 | F21: 280 | G21: 366 | H21: 225 | I21: 305 | J21: 391
A22: 2017-01-12 | B22: 150 | C22: 230 | D22: 316 | E22: 200 | F22: 280 | G22: 366 | H22: 225 | I22: 305 | J22: 391
A23: 2017-01-13 | B23: 150 | C23: 230 | D23: 316 | E23: 200 | F23: 280 | G23: 366 | H23: 225 | I23: 305 | J23: 391
A24: 2017-01-14 | B24: 150 | C24: 230 | D24: 316 | E24: 200 | F24: 280 | G24: 366 | H24: 225 | I24: 305 | J24: 391
A25: 2017-01-15 | B25: 150 | C25: 230 | D25: 316 | E25: 200 | F25: 280 | G25: 366 | H25: 225 | I25: 305 | J25: 391
A26: 2017-01-16 | B26: 150 | C26: 230 | D26: 316 | E26: 200 | F26: 280 | G26: 366 | H26: 225 | I26: 305 | J26: 391
A27: 2017-01-17 | B27: 150 | C27: 230 | D27: 316 | E27: 200 | F27: 280 | G27: 366 | H27: 225 | I27: 305 | J27: 391
A28: 2017-01-18 | B28: 150 | C28: 230 | D28: 316 | E28: 200 | F28: 280 | G28: 366 | H28: 225 | I28: 305 | J28: 391
A29: 2017-01-19 | B29: 150 | C29: 230 | D29: 316 | E29: 200 | F29: 280 | G29: 366 | H29: 225 | I29: 305 | J29: 391
A30: 2017-01-20 | B30: 150 | C30: 230 | D30: 316 | E30: 200 | F30: 280 | G30: 366 | H30: 225 | I30: 305 | J30: 391
A31: 2017-01-21 | B31: 150 | C31: 230 | D31: 316 | E31: 200 | F31: 280 | G31: 366 | H31: 225 | I31: 305 | J31: 391
A32: 2017-01-22 | B32: 150 | C32: 230 | D32: 316 | E32: 200 | F32: 280 | G32: 366 | H32: 225 | I32: 305 | J32: 391
A33: 2017-01-23 | B33: 150 | C33: 230 | D33: 316 | E33: 200 | F33: 280 | G33: 366 | H33: 225 | I33: 305 | J33: 391
A34: 2017-01-24 | B34: 150 | C34: 230 | D34: 316 | E34: 200 | F34: 280 | G34: 366 | H34: 225 | I34: 305 | J34: 391
A35: 2017-01-25 | B35: 150 | C35: 230 | D35: 316 | E35: 200 | F35: 280 | G35: 366 | H35: 225 | I35: 305 | J35: 391
A36: 2017-01-26 | B36: 150 | C36: 230 | D36: 316 | E36: 200 | F36: 280 | G36: 366 | H36: 225 | I36: 305 | J36: 391
A37: 2017-01-27 | B37: 150 | C37: 230 | D37: 316 | E37: 200 | F37: 280 | G37: 366 | H37: 225 | I37: 305 | J37: 391
A38: 2017-01-28 | B38: 150 | C38: 230 | D38: 316 | E38: 200 | F38: 280 | G38: 366 | H38: 225 | I38: 305 | J38: 391
A39: 2017-01-29 | B39: 150 | C39: 230 | D39: 316 | E39: 200 | F39: 280 | G39: 366 | H39: 225 | I39: 305 | J39: 391
A40: 2017-01-30 | B40: 150 | C40: 230 | D40: 316 | E40: 200 | F40: 280 | G40: 366 | H40: 225 | I40: 305 | J40: 391
A41: 2017-01-31 | B41: 150 | C41: 230 | D41: 316 | E41: 200 | F41: 280 | G41: 366 | H41: 225 | I41: 305 | J41: 391
A42: 2017-02-01 | B42: 150 | C42: 230 | D42: 316 | E42: 200 | F42: 280 | G42: 366 | H42: 225 | I42: 305 | J42: 391
A43: 2017-02-02 | B43: 150 | C43: 230 | D43: 316 | E43: 200 | F43: 280 | G43: 366 | H43: 225 | I43: 305 | J43: 391
A44: 2017-02-03 | B44: 150 | C44: 230 | D44: 316 | E44: 200 | F44: 280 | G44: 366 | H44: 225 | I44: 305 | J44: 391
A45: 2017-02-04 | B45: 150 | C45: 230 | D45: 316 | E45: 200 | F45: 280 | G45: 366 | H45: 225 | I45: 305 | J45: 391
A46: 2017-02-05 | B46: 150 | C46: 230 | D46: 316 | E46: 200 | F46: 280 | G46: 366 | H46: 225 | I46: 305 | J46: 391
A47: 2017-02-06 | B47: 150 | C47: 230 | D47: 316 | E47: 200 | F47: 280 | G47: 366 | H47: 225 | I47: 305 | J47: 391
A48: 2017-02-07 | B48: 150 | C48: 230 | D48: 316 | E48: 200 | F48: 280 | G48: 366 | H48: 225 | I48: 305 | J48: 391
A49: 2017-02-08 | B49: 150 | C49: 230 | D49: 316 | E49: 200 | F49: 280 | G49: 366 | H49: 225 | I49: 305 | J49: 391
A50: 2017-02-09 | B50: 150 | C50: 230 | D50: 316 | E50: 200 | F50: 280 | G50: 366 | H50: 225 | I50: 305 | J50: 391
A51: 2017-02-10 | B51: 150 | C51: 230 | D51: 316 | E51: 200 | F51: 280 | G51: 366 | H51: 225 | I51: 305 | J51: 391
A52: 2017-02-11 | B52: 150 | C52: 230 | D52: 316 | E52: 200 | F52: 280 | G52: 366 | H52: 225 | I52: 305 | J52: 391
A53: 2017-02-12 | B53: 150 | C53: 230 | D53: 316 | E53: 200 | F53: 280 | G53: 366 | H53: 225 | I53: 305 | J53: 391
A54: 2017-02-13 | B54: 150 | C54: 230 | D54: 316 | E54: 200 | F54: 280 | G54: 366 | H54: 225 | I54: 305 | J54: 391
A55: 2017-02-14 | B55: 150 | C55: 230 | D55: 316 | E55: 200 | F55: 280 | G55: 366 | H55: 225 | I55: 305 | J55: 391
A56: 2017-02-15 | B56: 150 | C56: 230 | D56: 316 | E56: 200 | F56: 280 | G56: 366 | H56: 225 | I56: 305 | J56: 391
A57: 2017-02-16 | B57: 150 | C57: 230 | D57: 316 | E57: 200 | F57: 280 | G57: 366 | H57: 225 | I57: 305 | J57: 391
A58: 2017-02-17 | B58: 150 | C58: 230 | D58: 316 | E58: 200 | F58: 280 | G58: 366 | H58: 225 | I58: 305 | J58: 391
A59: 2017-02-18 | B59: 150 | C59: 230 | D59: 316 | E59: 200 | F59: 280 | G59: 366 | H59: 225 | I59: 305 | J59: 391
A60: 2017-02-19 | B60: 150 | C60: 230 | D60: 316 | E60: 200 | F60: 280 | G60: 366 | H60: 225 | I60: 305 | J60: 391
A61: 2017-02-20 | B61: 150 | C61: 230 | D61: 316 | E61: 200 | F61: 280 | G61: 366 | H61: 225 | I61: 305 | J61: 391
A62: 2017-02-21 | B62: 150 | C62: 230 | D62: 316 | E62: 200 | F62: 280 | G62: 366 | H62: 225 | I62: 305 | J62: 391
A63: 2017-02-22 | B63: 150 | C63: 230 | D63: 316 | E63: 200 | F63: 280 | G63: 366 | H63: 225 | I63: 305 | J63: 391
A64: 2017-02-23 | B64: 150 | C64: 230 | D64: 316 | E64: 200 | F64: 280 | G64: 366 | H64: 225 | I64: 305 | J64: 391
A65: 2017-02-24 | B65: 150 | C65: 230 | D65: 316 | E65: 200 | F65: 280 | G65: 366 | H65: 225 | I65: 305 | J65: 391
A66: 2017-02-25 | B66: 150 | C66: 230 | D66: 316 | E66: 200 | F66: 280 | G66: 366 | H66: 225 | I66: 305 | J66: 391
A67: 2017-02-26 | B67: 150 | C67: 230 | D67: 316 | E67: 200 | F67: 280 | G67: 366 | H67: 225 | I67: 305 | J67: 391
A68: 2017-02-27 | B68: 150 | C68: 230 | D68: 316 | E68: 200 | F68: 280 | G68: 366 | H68: 225 | I68: 305 | J68: 391
A69: 2017-02-28 | B69: 150 | C69: 230 | D69: 316 | E69: 200 | F69: 280 | G69: 366 | H69: 225 | I69: 305 | J69: 391
A70: 2017-03-01 | B70: 150 | C70: 230 | D70: 316 | E70: 200 | F70: 280 | G70: 366 | H70: 225 | I70: 305 | J70: 391
A71: 2017-03-02 | B71: 150 | C71: 230 | D71: 316 | E71: 200 | F71: 280 | G71: 366 | H71: 225 | I71: 305 | J71: 391
A72: 2017-03-03 | B72: 150 | C72: 230 | D72: 316 | E72: 200 | F72: 280 | G72: 366 | H72: 225 | I72: 305 | J72: 391
A73: 2017-03-04 | B73: 150 | C73: 230 | D73: 316 | E73: 200 | F73: 280 | G73: 366 | H73: 225 | I73: 305 | J73: 391
A74: 2017-03-05 | B74: 150 | C74: 230 | D74: 316 | E74: 200 | F74: 280 | G74: 366 | H74: 225 | I74: 305 | J74: 391
A75: 2017-03-06 | B75: 150 | C75: 230 | D75: 316 | E75: 200 | F75: 280 | G75: 366 | H75: 225 | I75: 305 | J75: 391
A76: 2017-03-07 | B76: 150 | C76: 230 | D76: 316 | E76: 200 | F76: 280 | G76: 366 | H76: 225 | I76: 305 | J76: 391
A77: 2017-03-08 | B77: 150 | C77: 230 | D77: 316 | E77: =B77+50 -> 200 | F77: =C77+50 -> 280 | G77: =D77+50 -> 366 | H77: =B77+75 -> 225 | I77: =C77+75 -> 305 | J77: =D77+75 -> 391
A78: 2017-03-09 | B78: 150 | C78: 230 | D78: 316 | E78: 200 | F78: 280 | G78: 366 | H78: 225 | I78: 305 | J78: 391
A79: 2017-03-10 | B79: 150 | C79: 230 | D79: 316 | E79: 200 | F79: 280 | G79: 366 | H79: 225 | I79: 305 | J79: 391
A80: 2017-03-11 | B80: 150 | C80: 230 | D80: 316 | E80: 200 | F80: 280 | G80: 366 | H80: 225 | I80: 305 | J80: 391
A81: 2017-03-12 | B81: 150 | C81: 230 | D81: 316 | E81: 200 | F81: 280 | G81: 366 | H81: 225 | I81: 305 | J81: 391
A82: 2017-03-13 | B82: 150 | C82: 230 | D82: 316 | E82: 200 | F82: 280 | G82: 366 | H82: 225 | I82: 305 | J82: 391
A83: 2017-03-14 | B83: 150 | C83: 230 | D83: 316 | E83: 200 | F83: 280 | G83: 366 | H83: 225 | I83: 305 | J83: 391
A84: 2017-03-15 | B84: 150 | C84: 230 | D84: 316 | E84: 200 | F84: 280 | G84: 366 | H84: 225 | I84: 305 | J84: 391
A85: 2017-03-16 | B85: 150 | C85: 230 | D85: 316 | E85: 200 | F85: 280 | G85: 366 | H85: 225 | I85: 305 | J85: 391
A86: 2017-03-17 | B86: 150 | C86: 230 | D86: 316 | E86: 200 | F86: 280 | G86: 366 | H86: 225 | I86: 305 | J86: 391
A87: 2017-03-18 | B87: 150 | C87: 230 | D87: 316 | E87: 200 | F87: 280 | G87: 366 | H87: 225 | I87: 305 | J87: 391
A88: 2017-03-19 | B88: 150 | C88: 230 | D88: 316 | E88: 200 | F88: 280 | G88: 366 | H88: 225 | I88: 305 | J88: 391
A89: 2017-03-20 | B89: 150 | C89: 230 | D89: 316 | E89: 200 | F89: 280 | G89: 366 | H89: 225 | I89: 305 | J89: 391
A90: 2017-03-21 | B90: 150 | C90: 230 | D90: 316 | E90: 200 | F90: 280 | G90: 366 | H90: 225 | I90: 305 | J90: 391
A91: 2017-03-22 | B91: 150 | C91: 230 | D91: 316 | E91: 200 | F91: 280 | G91: 366 | H91: 225 | I91: 305 | J91: 391
A92: 2017-03-23 | B92: 150 | C92: 230 | D92: 316 | E92: 200 | F92: 280 | G92: 366 | H92: 225 | I92: 305 | J92: 391
A93: 2017-03-24 | B93: 150 | C93: 230 | D93: 316 | E93: 200 | F93: 280 | G93: 366 | H93: 225 | I93: 305 | J93: 391
A94: 2017-03-25 | B94: 150 | C94: 230 | D94: 316 | E94: 200 | F94: 280 | G94: 366 | H94: 225 | I94: 305 | J94: 391
A95: 2017-03-26 | B95: 150 | C95: 230 | D95: 316 | E95: 200 | F95: 280 | G95: 366 | H95: 225 | I95: 305 | J95: 391
A96: 2017-03-27 | B96: 150 | C96: 230 | D96: 316 | E96: 200 | F96: 280 | G96: 366 | H96: 225 | I96: 305 | J96: 391
A97: 2017-03-28 | B97: 150 | C97: 230 | D97: 316 | E97: 200 | F97: 280 | G97: 366 | H97: 225 | I97: 305 | J97: 391
A98: 2017-03-29 | B98: 150 | C98: 230 | D98: 316 | E98: 200 | F98: 280 | G98: 366 | H98: 225 | I98: 305 | J98: 391
A99: 2017-03-30 | B99: 150 | C99: 230 | D99: 316 | E99: 200 | F99: 280 | G99: 366 | H99: 225 | I99: 305 | J99: 391
A100: 2017-03-31 | B100: 150 | C100: 230 | D100: 316 | E100: 200 | F100: 280 | G100: 366 | H100: 225 | I100: 305 | J100: 391
A101: 2017-04-01 | B101: 95 | C101: 190 | D101: 261 | E101: =B101+35 -> 130 | F101: =C101+35 -> 225 | G101: =D101+35 -> 296 | H101: =B101+50 -> 145 | I101: =C101+50 -> 240 | J101: =D101+50 -> 311
A102: 2017-04-02 | B102: 95 | C102: 190 | D102: 261 | E102: =B102+35 -> 130 | F102: =C102+35 -> 225 | G102: =D102+35 -> 296 | H102: =B102+50 -> 145 | I102: =C102+50 -> 240 | J102: =D102+50 -> 311
A103: 2017-04-03 | B103: 95 | C103: 190 | D103: 261 | E103: 130 | F103: 225 | G103: 296 | H103: 145 | I103: 240 | J103: 311
A104: 2017-04-04 | B104: 95 | C104: 190 | D104: 261 | E104: 130 | F104: 225 | G104: 296 | H104: 145 | I104: 240 | J104: 311
A105: 2017-04-05 | B105: 95 | C105: 190 | D105: 261 | E105: 130 | F105: 225 | G105: 296 | H105: 145 | I105: 240 | J105: 311
A106: 2017-04-06 | B106: 95 | C106: 190 | D106: 261 | E106: 130 | F106: 225 | G106: 296 | H106: 145 | I106: 240 | J106: 311
A107: 2017-04-07 | B107: 95 | C107: 190 | D107: 261 | E107: 130 | F107: 225 | G107: 296 | H107: 145 | I107: 240 | J107: 311
A108: 2017-04-08 | B108: 95 | C108: 190 | D108: 261 | E108: 130 | F108: 225 | G108: 296 | H108: 145 | I108: 240 | J108: 311
A109: 2017-04-09 | B109: 95 | C109: 190 | D109: 261 | E109: 130 | F109: 225 | G109: 296 | H109: 145 | I109: 240 | J109: 311
A110: 2017-04-10 | B110: 95 | C110: 190 | D110: 261 | E110: 130 | F110: 225 | G110: 296 | H110: 145 | I110: 240 | J110: 311
A111: 2017-04-11 | B111: 95 | C111: 190 | D111: 261 | E111: 130 | F111: 225 | G111: 296 | H111: 145 | I111: 240 | J111: 311
A112: 2017-04-12 | B112: 95 | C112: 190 | D112: 261 | E112: 130 | F112: 225 | G112: 296 | H112: 145 | I112: 240 | J112: 311
A113: 2017-04-13 | B113: 95 | C113: 190 | D113: 261 | E113: 130 | F113: 225 | G113: 296 | H113: 145 | I113: 240 | J113: 311
A114: 2017-04-14 | B114: 95 | C114: 190 | D114: 261 | E114: 130 | F114: 225 | G114: 296 | H114: 145 | I114: 240 | J114: 311
A115: 2017-04-15 | B115: 95 | C115: 190 | D115: 261 | E115: 130 | F115: 225 | G115: 296 | H115: 145 | I115: 240 | J115: 311
A116: 2017-04-16 | B116: 95 | C116: 190 | D116: 261 | E116: 130 | F116: 225 | G116: 296 | H116: 145 | I116: 240 | J116: 311
A117: 2017-04-17 | B117: 95 | C117: 190 | D117: 261 | E117: 130 | F117: 225 | G117: 296 | H117: 145 | I117: 240 | J117: 311
A118: 2017-04-18 | B118: 95 | C118: 190 | D118: 261 | E118: 130 | F118: 225 | G118: 296 | H118: 145 | I118: 240 | J118: 311
A119: 2017-04-19 | B119: 95 | C119: 190 | D119: 261 | E119: 130 | F119: 225 | G119: 296 | H119: 145 | I119: 240 | J119: 311
A120: 2017-04-20 | B120: 95 | C120: 190 | D120: 261 | E120: 130 | F120: 225 | G120: 296 | H120: 145 | I120: 240 | J120: 311
A121: 2017-04-21 | B121: 95 | C121: 190 | D121: 261 | E121: 130 | F121: 225 | G121: 296 | H121: 145 | I121: 240 | J121: 311
A122: 2017-04-22 | B122: 95 | C122: 190 | D122: 261 | E122: 130 | F122: 225 | G122: 296 | H122: 145 | I122: 240 | J122: 311
A123: 2017-04-23 | B123: 95 | C123: 190 | D123: 261 | E123: 130 | F123: 225 | G123: 296 | H123: 145 | I123: 240 | J123: 311
A124: 2017-04-24 | B124: 95 | C124: 190 | D124: 261 | E124: 130 | F124: 225 | G124: 296 | H124: 145 | I124: 240 | J124: 311
A125: 2017-04-25 | B125: 95 | C125: 190 | D125: 261 | E125: 130 | F125: 225 | G125: 296 | H125: 145 | I125: 240 | J125: 311
A126: 2017-04-26 | B126: 95 | C126: 190 | D126: 261 | E126: 130 | F126: 225 | G126: 296 | H126: 145 | I126: 240 | J126: 311
A127: 2017-04-27 | B127: 95 | C127: 190 | D127: 261 | E127: 130 | F127: 225 | G127: 296 | H127: 145 | I127: 240 | J127: 311
A128: 2017-04-28 | B128: 95 | C128: 190 | D128: 261 | E128: 130 | F128: 225 | G128: 296 | H128: 145 | I128: 240 | J128: 311
A129: 2017-04-29 | B129: 95 | C129: 190 | D129: 261 | E129: 130 | F129: 225 | G129: 296 | H129: 145 | I129: 240 | J129: 311
A130: 2017-04-30 | B130: 95 | C130: 190 | D130: 261 | E130: 130 | F130: 225 | G130: 296 | H130: 145 | I130: 240 | J130: 311
A131: 2017-05-01 | B131: 95 | C131: 190 | D131: 261 | E131: 130 | F131: 225 | G131: 296 | H131: 145 | I131: 240 | J131: 311
A132: 2017-05-02 | B132: 95 | C132: 190 | D132: 261 | E132: 130 | F132: 225 | G132: 296 | H132: 145 | I132: 240 | J132: 311
A133: 2017-05-03 | B133: 95 | C133: 190 | D133: 261 | E133: 130 | F133: 225 | G133: 296 | H133: 145 | I133: 240 | J133: 311
A134: 2017-05-04 | B134: 95 | C134: 190 | D134: 261 | E134: 130 | F134: 225 | G134: 296 | H134: 145 | I134: 240 | J134: 311
A135: 2017-05-05 | B135: 95 | C135: 190 | D135: 261 | E135: 130 | F135: 225 | G135: 296 | H135: 145 | I135: 240 | J135: 311
A136: 2017-05-06 | B136: 95 | C136: 190 | D136: 261 | E136: 130 | F136: 225 | G136: 296 | H136: 145 | I136: 240 | J136: 311
A137: 2017-05-07 | B137: 95 | C137: 190 | D137: 261 | E137: 130 | F137: 225 | G137: 296 | H137: 145 | I137: 240 | J137: 311
A138: 2017-05-08 | B138: 95 | C138: 190 | D138: 261 | E138: 130 | F138: 225 | G138: 296 | H138: 145 | I138: 240 | J138: 311
A139: 2017-05-09 | B139: 95 | C139: 190 | D139: 261 | E139: 130 | F139: 225 | G139: 296 | H139: 145 | I139: 240 | J139: 311
A140: 2017-05-10 | B140: 95 | C140: 190 | D140: 261 | E140: 130 | F140: 225 | G140: 296 | H140: 145 | I140: 240 | J140: 311
A141: 2017-05-11 | B141: 95 | C141: 190 | D141: 261 | E141: 130 | F141: 225 | G141: 296 | H141: 145 | I141: 240 | J141: 311
A142: 2017-05-12 | B142: 95 | C142: 190 | D142: 261 | E142: 130 | F142: 225 | G142: 296 | H142: 145 | I142: 240 | J142: 311
A143: 2017-05-13 | B143: 95 | C143: 190 | D143: 261 | E143: 130 | F143: 225 | G143: 296 | H143: 145 | I143: 240 | J143: 311
A144: 2017-05-14 | B144: 95 | C144: 190 | D144: 261 | E144: 130 | F144: 225 | G144: 296 | H144: 145 | I144: 240 | J144: 311
A145: 2017-05-15 | B145: 95 | C145: 190 | D145: 261 | E145: 130 | F145: 225 | G145: 296 | H145: 145 | I145: 240 | J145: 311
A146: 2017-05-16 | B146: 95 | C146: 190 | D146: 261 | E146: =B146+35 -> 130 | F146: =C146+35 -> 225 | G146: =D146+35 -> 296 | H146: 145 | I146: 240 | J146: 311
A147: 2017-05-17 | B147: 95 | C147: 190 | D147: 261 | E147: 130 | F147: 225 | G147: 296 | H147: 145 | I147: 240 | J147: 311
A148: 2017-05-18 | B148: 95 | C148: 190 | D148: 261 | E148: 130 | F148: 225 | G148: 296 | H148: 145 | I148: 240 | J148: 311
A149: 2017-05-19 | B149: 95 | C149: 190 | D149: 261 | E149: 130 | F149: 225 | G149: 296 | H149: 145 | I149: 240 | J149: 311
A150: 2017-05-20 | B150: 95 | C150: 190 | D150: 261 | E150: 130 | F150: 225 | G150: 296 | H150: 145 | I150: 240 | J150: 311
A151: 2017-05-21 | B151: 95 | C151: 190 | D151: 261 | E151: 130 | F151: 225 | G151: 296 | H151: 145 | I151: 240 | J151: 311
A152: 2017-05-22 | B152: 95 | C152: 190 | D152: 261 | E152: 130 | F152: 225 | G152: 296 | H152: 145 | I152: 240 | J152: 311
A153: 2017-05-23 | B153: 95 | C153: 190 | D153: 261 | E153: 130 | F153: 225 | G153: 296 | H153: 145 | I153: 240 | J153: 311
A154: 2017-05-24 | B154: 95 | C154: 190 | D154: 261 | E154: 130 | F154: 225 | G154: 296 | H154: 145 | I154: 240 | J154: 311
A155: 2017-05-25 | B155: 95 | C155: 190 | D155: 261 | E155: 130 | F155: 225 | G155: 296 | H155: 145 | I155: 240 | J155: 311
A156: 2017-05-26 | B156: 95 | C156: 190 | D156: 261 | E156: 130 | F156: 225 | G156: 296 | H156: 145 | I156: 240 | J156: 311
A157: 2017-05-27 | B157: 95 | C157: 190 | D157: 261 | E157: 130 | F157: 225 | G157: 296 | H157: 145 | I157: 240 | J157: 311
A158: 2017-05-28 | B158: 95 | C158: 190 | D158: 261 | E158: 130 | F158: 225 | G158: 296 | H158: 145 | I158: 240 | J158: 311
A159: 2017-05-29 | B159: 95 | C159: 190 | D159: 261 | E159: 130 | F159: 225 | G159: 296 | H159: 145 | I159: 240 | J159: 311
A160: 2017-05-30 | B160: 95 | C160: 190 | D160: 261 | E160: 130 | F160: 225 | G160: 296 | H160: 145 | I160: 240 | J160: 311
A161: 2017-05-31 | B161: 95 | C161: 190 | D161: 261 | E161: 130 | F161: 225 | G161: 296 | H161: 145 | I161: 240 | J161: 311
A162: 2017-06-01 | B162: 95 | C162: 190 | D162: 261 | E162: 130 | F162: 225 | G162: 296 | H162: 145 | I162: 240 | J162: 311
A163: 2017-06-02 | B163: 95 | C163: 190 | D163: 261 | E163: 130 | F163: 225 | G163: 296 | H163: 145 | I163: 240 | J163: 311
A164: 2017-06-03 | B164: 95 | C164: 190 | D164: 261 | E164: 130 | F164: 225 | G164: 296 | H164: 145 | I164: 240 | J164: 311
A165: 2017-06-04 | B165: 95 | C165: 190 | D165: 261 | E165: 130 | F165: 225 | G165: 296 | H165: 145 | I165: 240 | J165: 311
A166: 2017-06-05 | B166: 95 | C166: 190 | D166: 261 | E166: 130 | F166: 225 | G166: 296 | H166: =B166+50 -> 145 | I166: =C166+50 -> 240 | J166: =D166+50 -> 311
A167: 2017-06-06 | B167: 95 | C167: 190 | D167: 261 | E167: 130 | F167: 225 | G167: 296 | H167: 145 | I167: 240 | J167: 311
A168: 2017-06-07 | B168: 95 | C168: 190 | D168: 261 | E168: 130 | F168: 225 | G168: 296 | H168: 145 | I168: 240 | J168: 311
A169: 2017-06-08 | B169: 95 | C169: 190 | D169: 261 | E169: 130 | F169: 225 | G169: 296 | H169: 145 | I169: 240 | J169: 311
A170: 2017-06-09 | B170: 95 | C170: 190 | D170: 261 | E170: 130 | F170: 225 | G170: 296 | H170: 145 | I170: 240 | J170: 311
A171: 2017-06-10 | B171: 95 | C171: 190 | D171: 261 | E171: 130 | F171: 225 | G171: 296 | H171: 145 | I171: 240 | J171: 311
A172: 2017-06-11 | B172: 95 | C172: 190 | D172: 261 | E172: 130 | F172: 225 | G172: 296 | H172: 145 | I172: 240 | J172: 311
A173: 2017-06-12 | B173: 95 | C173: 190 | D173: 261 | E173: 130 | F173: 225 | G173: 296 | H173: 145 | I173: 240 | J173: 311
A174: 2017-06-13 | B174: 95 | C174: 190 | D174: 261 | E174: 130 | F174: 225 | G174: 296 | H174: 145 | I174: 240 | J174: 311
A175: 2017-06-14 | B175: 95 | C175: 190 | D175: 261 | E175: 130 | F175: 225 | G175: 296 | H175: 145 | I175: 240 | J175: 311
A176: 2017-06-15 | B176: 95 | C176: 190 | D176: 261 | E176: 130 | F176: 225 | G176: 296 | H176: 145 | I176: 240 | J176: 311
A177: 2017-06-16 | B177: 95 | C177: 190 | D177: 261 | E177: 130 | F177: 225 | G177: 296 | H177: 145 | I177: 240 | J177: 311
A178: 2017-06-17 | B178: 95 | C178: 190 | D178: 261 | E178: 130 | F178: 225 | G178: 296 | H178: 145 | I178: 240 | J178: 311
A179: 2017-06-18 | B179: 95 | C179: 190 | D179: 261 | E179: 130 | F179: 225 | G179: 296 | H179: 145 | I179: 240 | J179: 311
A180: 2017-06-19 | B180: 95 | C180: 190 | D180: 261 | E180: 130 | F180: 225 | G180: 296 | H180: 145 | I180: 240 | J180: 311
A181: 2017-06-20 | B181: 95 | C181: 190 | D181: 261 | E181: 130 | F181: 225 | G181: 296 | H181: 145 | I181: 240 | J181: 311
A182: 2017-06-21 | B182: 95 | C182: 190 | D182: 261 | E182: 130 | F182: 225 | G182: 296 | H182: 145 | I182: 240 | J182: 311
A183: 2017-06-22 | B183: 95 | C183: 190 | D183: 261 | E183: 130 | F183: 225 | G183: 296 | H183: 145 | I183: 240 | J183: 311
A184: 2017-06-23 | B184: 95 | C184: 190 | D184: 261 | E184: 130 | F184: 225 | G184: 296 | H184: 145 | I184: 240 | J184: 311
A185: 2017-06-24 | B185: 95 | C185: 190 | D185: 261 | E185: 130 | F185: 225 | G185: 296 | H185: 145 | I185: 240 | J185: 311
A186: 2017-06-25 | B186: 95 | C186: 190 | D186: 261 | E186: 130 | F186: 225 | G186: 296 | H186: 145 | I186: 240 | J186: 311
A187: 2017-06-26 | B187: 95 | C187: 190 | D187: 261 | E187: 130 | F187: 225 | G187: 296 | H187: 145 | I187: 240 | J187: 311
A188: 2017-06-27 | B188: 95 | C188: 190 | D188: 261 | E188: 130 | F188: 225 | G188: 296 | H188: 145 | I188: 240 | J188: 311
A189: 2017-06-28 | B189: 95 | C189: 190 | D189: 261 | E189: 130 | F189: 225 | G189: 296 | H189: 145 | I189: 240 | J189: 311
A190: 2017-06-29 | B190: 95 | C190: 190 | D190: 261 | E190: 130 | F190: 225 | G190: 296 | H190: 145 | I190: 240 | J190: 311
A191: 2017-06-30 | B191: 95 | C191: 190 | D191: 261 | E191: 130 | F191: 225 | G191: 296 | H191: 145 | I191: 240 | J191: 311
A192: 2017-07-01 | B192: 95 | C192: 190 | D192: 261 | E192: 130 | F192: 225 | G192: 296 | H192: 145 | I192: 240 | J192: 311
A193: 2017-07-02 | B193: 95 | C193: 190 | D193: 261 | E193: 130 | F193: 225 | G193: 296 | H193: 145 | I193: 240 | J193: 311
A194: 2017-07-03 | B194: 95 | C194: 190 | D194: 261 | E194: 130 | F194: 225 | G194: 296 | H194: 145 | I194: 240 | J194: 311
A195: 2017-07-04 | B195: 95 | C195: 190 | D195: 261 | E195: 130 | F195: 225 | G195: 296 | H195: 145 | I195: 240 | J195: 311
A196: 2017-07-05 | B196: 95 | C196: 190 | D196: 261 | E196: 130 | F196: 225 | G196: 296 | H196: 145 | I196: 240 | J196: 311
A197: 2017-07-06 | B197: 95 | C197: 190 | D197: 261 | E197: 130 | F197: 225 | G197: 296 | H197: 145 | I197: 240 | J197: 311
A198: 2017-07-07 | B198: 95 | C198: 190 | D198: 261 | E198: 130 | F198: 225 | G198: 296 | H198: 145 | I198: 240 | J198: 311
A199: 2017-07-08 | B199: 95 | C199: 190 | D199: 261 | E199: 130 | F199: 225 | G199: 296 | H199: 145 | I199: 240 | J199: 311
A200: 2017-07-09 | B200: 95 | C200: 190 | D200: 261 | E200: 130 | F200: 225 | G200: 296 | H200: 145 | I200: 240 | J200: 311
A201: 2017-07-10 | B201: 95 | C201: 190 | D201: 261 | E201: 130 | F201: 225 | G201: 296 | H201: 145 | I201: 240 | J201: 311
... 174 more rows

Sheet Workout
A1: Thaihotel | B1: Date | C1: Date | D1: No. of days | E1: Lodge | F1: No. of pax | G1: Room type | H1: Additional Priviledge | I1: Cost | J1: Solution to arrive to:-
A2: =IFERROR(INDEX(ThaiHotel,ROWS($A$2:A2)),"") -> Bangkokhilton | B2: 2017-04-11 | C2: 2017-04-11 | D2: =(C2-B2)+1 -> 1 | E2: MandarinOriental | F2: 5 | G2: Double | H2: VIP | J2: =240*F2*D2 -> 1200
A3: =IFERROR(INDEX(ThaiHotel,ROWS($A$2:A3)),"") -> MandarinOriental | B3: 2017-04-12 | C3: 2017-04-14 | D3: =(C3-B3)+1 -> 3 | E3: Bangkokhilton | F3: 2 | G3: Triple | H3: n/a | J3: =(273)*F3*D3 -> 1638
A5: =IFERROR(INDEX(Lodgesname,ROWS($A$2:A5)),"") -> 
A6: =IFERROR(INDEX(Lodgesname,ROWS($A$2:A6)),"") -> 
A11: =IFERROR(INDEX(Lodgesname,ROWS($A$2:A11)),"") ->  | I11: Objective:
I12: Place formula here to give me total cost
A14: Room Type | I14: If there is additional sterling pound cost of 70 on easter , how do I go about ??
A15: Single
A16: Double
A17: Triple
A19: MandarinOriental
A20: Normal
A21: Bestview
A22: VIP
